lending/lending_fUSD_20250130
["ID","MTS","AMOUNT","RATE_DAILY","PERIOD"]
[350918821,1738195231175,150.0,0.00020706,120]
[350918822,1738195238359,280.22,0.00010137,2]
[350918824,1738195290738,150.0,0.00022077,120]
[350918826,1738195350768,150.0,0.00022191,120]
[350918828,1738195410870,150.0,0.00020841,120]
[350918832,1738195832164,-164.14,0.00013699,2]
[350918833,1738195832175,-150.0,0.00014274,2]
[350918834,1738195832186,-150.0,0.00015068,2]
[350918835,1738195832196,-150.0,0.00015203,2]
[350918836,1738195832206,-752.34,0.00015999,2]
[350918837,1738195832216,-280.22,0.00016813,2]
[350918838,1738195832226,-310.0,0.000172,5]
[350918839,1738195832235,-256.09,0.00017737,2]
[350918840,1738195832245,-300.0,0.00017746,2]
[350918841,1738195832255,-376.5,0.00017746,2]
[350918842,1738195832266,-377.41,0.00017746,2]
[350918843,1738195832276,-4.3,0.00017746,2]
[350918844,1738195832578,-366.82,0.00017746,2]
[350918845,1738195832589,-56.45989265,0.00017746,2]
[350918857,1738195838151,-319.04010735,0.00017746,2]
[350918858,1738195838161,-368.49,0.00017746,2]
[350918859,1738195838170,-204.62621808,0.00017746,2]
[350918870,1738195838560,-163.01378192,0.00017746,2]
[350918872,1738195838570,-259.09609106,0.00017746,2]
[350918874,1738195838582,-118.94390894,0.00017746,2]
[350918876,1738195838592,-380.32,0.00017747,2]
[350918879,1738195838602,-20.73239636,0.00017747,2]
[350918975,1738195840146,-234.26760364,0.00017747,2]
[350918976,1738195840156,-375.62,0.00017747,2]
[350918977,1738195840165,-368.37,0.00017747,2]
[350918978,1738195840174,-377.72,0.00017747,2]
[350918979,1738195840184,-374.77,0.00017747,2]
[350918980,1738195840193,-378.24,0.00017747,2]
[350918981,1738195840202,-377.37,0.00017747,2]
[350918982,1738195840212,-380.82,0.00017747,2]
[350918983,1738195840222,-380.68,0.00017747,2]
[350918984,1738195840231,-376.88,0.00017747,2]
[350918985,1738195840241,-373.34,0.00017747,2]
[350918986,1738195840251,-375.96,0.00017747,2]
[350918987,1738195840260,-367.79,0.00017747,2]
[350918988,1738195840270,-381.29,0.00017747,2]
[350918989,1738195840279,-380.38,0.00017747,2]
[350918990,1738195840288,-371.3,0.00017747,2]
[350918991,1738195840298,-374.1,0.00017748,2]
[350918992,1738195840307,-367.92,0.00017748,2]
[350918993,1738195840317,-372.23,0.00017748,2]
[350918994,1738195840328,-377.34,0.00017748,2]
[350918995,1738195840338,-378.12,0.00017748,2]
[350918996,1738195840347,-372.28,0.00017748,2]
[350918997,1738195840357,-379.97,0.00017748,2]
[350918998,1738195840366,-370.97,0.00017748,2]
[350918999,1738195840376,-371.98,0.00017748,2]
[350919000,1738195840385,-380.66,0.00017748,2]
[350919001,1738195840395,-376.85,0.00017748,2]
[350919002,1738195840404,-377.1,0.00017748,2]
[350919003,1738195840414,-368.9,0.00017748,2]
[350919004,1738195840423,-380.42,0.00017748,2]
[350919005,1738195840432,-500.0,0.00017748,2]
[350919006,1738195840442,-1000.0,0.00017808,2]
[350919007,1738195840451,-171.21,0.00017865,2]
[350919008,1738195840460,-183.81,0.00018014,2]
[350919009,1738195840470,-108.04239635,0.00018067,2]
[350919010,1738195840494,-121.63760365,0.00018067,2]
[350919011,1738195840503,-604.81963758,0.00018263,2]
[350919012,1738195840519,-147.52036242,0.00018263,2]
[350919013,1738195840530,-179.81,0.00018725,2]
[350919014,1738195840539,-1548.81935758,0.000188,2]
[350919015,1738195840552,-2179.42374242,0.000188,2]
[350919016,1738195840562,-1018.071,0.00019078,2]
[350919018,1738195840572,-169.044,0.00019078,2]
[350919020,1738195840581,-300.0,0.00019178,2]
[350919022,1738195840590,-500.0,0.00019178,2]
[350919024,1738195840600,-463.81,0.00019178,2]
[350919026,1738195840609,-312.06641773,0.00019178,2]
[350919028,1738195840618,-402.70090668,0.00019178,2]
[350919030,1738195840627,-500.0,0.00019178,2]
[350919032,1738195840636,-500.0,0.00019178,2]
[350919034,1738195840646,-500.0,0.00019178,2]
[350919036,1738195840655,-500.0,0.00019178,2]
[350919038,1738195840665,-500.0,0.00019178,2]
[350919040,1738195840674,-500.0,0.00019178,2]
[350919042,1738195840683,-500.0,0.00019178,2]
[350919044,1738195840693,-500.0,0.00019178,2]
[350919046,1738195840702,-500.0,0.00019178,2]
[350919048,1738195840711,-500.0,0.00019178,2]
[350919050,1738195840721,-500.0,0.00019178,2]
[350919052,1738195840730,-500.0,0.00019178,2]
[350919054,1738195840739,-500.0,0.00019178,2]
[350919056,1738195840748,-500.0,0.00019178,2]
[350919058,1738195840757,-500.0,0.00019178,2]
[350919060,1738195840766,-500.0,0.00019178,2]
[350919062,1738195840775,-305.49460461,0.00019178,2]
[350919064,1738195840784,-500.0,0.00019178,2]
[350919066,1738195840793,-500.0,0.00019178,2]
[350919068,1738195840804,-500.0,0.00019178,2]
[350919070,1738195840814,-500.0,0.00019178,2]
[350919072,1738195840823,-500.0,0.00019178,2]
[350919074,1738195840833,-500.0,0.00019178,2]
[350919076,1738195840842,-500.0,0.00019178,2]
[350919078,1738195840852,-367.96845526,0.00019178,2]
[350919080,1738195840861,-500.0,0.00019178,2]
[350919082,1738195840871,-500.0,0.00019178,2]
[350919084,1738195840880,-500.0,0.00019178,2]
[350919086,1738195840890,-111.35960395,0.00019178,2]
[350919354,1738195844061,-388.64039605,0.00019178,2]
[350919355,1738195844071,-150.0,0.00019178,2]
[350919356,1738195844081,-382.0,0.00019178,2]
[350919357,1738195844091,-225.0,0.00019208,2]
[350919358,1738195844100,-300.0,0.00019315,2]
[350919359,1738195844109,-500.0,0.00019315,2]
[350919360,1738195844119,-99.53983501,0.00019315,2]
[350919361,1738195844166,-400.46016499,0.00019315,2]
[350919362,1738195844177,-500.0,0.00019315,2]
[350919363,1738195844187,-150.30450497,0.00019315,2]
[350919364,1738195844221,-348.30220761,0.00019315,2]
[350919365,1738195844230,-500.0,0.00019315,2]
[350919366,1738195844241,-439.46,0.00019315,2]
[350919367,1738195844255,-500.0,0.00019315,2]
[350919368,1738195844265,-28.38286791,0.00019315,2]
[350919369,1738195844277,-471.61713209,0.00019315,2]
[350919370,1738195844286,-500.0,0.00019315,2]
[350919371,1738195844296,-253.38286776,0.00019315,2]
[350919372,1738195844307,-246.61713224,0.00019315,2]
[350919373,1738195844316,-500.0,0.00019315,2]
[350919374,1738195844326,-500.0,0.00019315,2]
[350919375,1738195844337,-197.02359372,0.00019315,2]
[350919383,1738195846271,-302.97640628,0.00019315,2]
[350919384,1738195846282,-500.0,0.00019315,2]
[350919385,1738195846291,-65.87786132,0.00019315,2]
[350919386,1738195846325,-434.12213868,0.00019315,2]
[350919387,1738195846335,-345.65118133,0.00019315,2]
[350919388,1738195846390,-154.34881867,0.00019315,2]
[350919389,1738195846400,-9.90212074,0.00019315,2]
[350919390,1738195846433,-490.09787926,0.00019315,2]
[350919391,1738195846443,-500.0,0.00019315,2]
[350919392,1738195846452,-500.0,0.00019315,2]
[350919393,1738195846462,-179.16,0.00019315,2]
[350919394,1738195846472,-420.0,0.00019368,2]
[350919395,1738195846481,-166.28,0.00019452,2]
[350919396,1738195846492,-300.0,0.00019452,2]
[350919397,1738195846502,-618.25,0.00019452,2]
[350919398,1738195846511,-500.0,0.00019452,2]
[350919399,1738195846521,-500.0,0.00019452,2]
[350919400,1738195846531,-500.0,0.00019452,2]
[350919401,1738195846541,-500.0,0.00019452,2]
[350919402,1738195846551,-500.0,0.00019452,2]
[350919403,1738195846561,-500.0,0.00019452,2]
[350919404,1738195846571,-500.0,0.00019452,2]
[350919405,1738195846583,-370.66,0.00019452,2]
[350919406,1738195846594,-300.0,0.00019589,2]
[350919407,1738195846603,-500.0,0.00019589,2]
[350919408,1738195846614,-500.0,0.00019589,2]
[350919409,1738195846623,-500.0,0.00019589,2]
[350919410,1738195846633,-240.73,0.00019589,2]
[350919411,1738195846642,-500.0,0.00019589,2]
[350919413,1738195846652,-625.83002694,0.00019589,2]
[350919415,1738195846662,-500.0,0.00019589,2]
[350919417,1738195846673,-442.0496836,0.00019599,2]
[350919419,1738195846683,-982.62,0.000196,2]
[350919421,1738195846692,-150.0,0.00019683,2]
[350919423,1738195846702,-1922.23980417,0.000197,2]
[350919425,1738195890795,150.0,0.000211,120]
[350919426,1738195991900,2000.0,0.00022435,120]
[350919427,1738195994075,500.0,0.00022435,120]
[350919428,1738196003632,200.0,0.00022435,120]
[350919443,1738197007532,2479.76777499,0.00023,120]
[350919452,1738197032399,-162.66,0.00013699,2]
[350919453,1738197032410,-150.0,0.00013849,2]
[350919454,1738197032421,-1308.40678,0.000143,2]
[350919455,1738197032432,-150.0,0.00014384,2]
[350919456,1738197032443,-150.0,0.00015068,2]
[350919457,1738197032455,-1308.40678,0.00016,2]
[350919458,1738197032465,-6158.26199028,0.00016,2]
[350919459,1738197032475,-751.93,0.00016133,2]
[350919460,1738197032485,-195.8798252,0.0001634,2]
[350919461,1738197032506,-4.1201748,0.0001634,2]
[350919462,1738197032516,-300.0,0.00016438,2]
[350919463,1738197032528,-354.05,0.00016547,2]
[350919464,1738197032538,-885.97826036,0.00016618,2]
[350919465,1738197032563,-12413.98173964,0.00016618,2]
[350919466,1738197032573,-381.04,0.00016715,2]
[350919467,1738197032585,-372.15,0.00016716,2]
[350919468,1738197032594,-371.32,0.00016719,2]
[350919469,1738197032605,-377.05,0.00016724,2]
[350919470,1738197032614,-376.31,0.00016734,2]
[350919471,1738197032624,-378.38,0.00016753,2]
[350919472,1738197032636,-500.0,0.00016849,2]
[350919473,1738197032646,-354.5376587,0.00017,18]
[350919474,1738197032656,-170.13,0.00017091,2]
[350919475,1738197032665,-1308.40678,0.000177,2]
[350919476,1738197032675,-375.73,0.00017748,2]
[350919477,1738197032686,-368.32,0.00017748,2]
[350919478,1738197032698,-369.72,0.00017748,2]
[350919479,1738197032708,-500.0,0.00017748,2]
[350919480,1738197032718,-500.0,0.00017748,2]
[350919481,1738197032728,-250.0,0.00017751,2]
[350919483,1738197032739,-1000.0,0.00017771,2]
[350919485,1738197032749,-218.06339737,0.00018,2]
[350919487,1738197032759,-123472.69372059,0.00018,2]
[350919489,1738197032771,-368.49929451,0.00018,2]
[350919509,1738197038207,-23818.09343367,0.00018,2]
[350919510,1738197038335,-2136.98131166,0.00018,2]
[350919511,1738197038404,-312.58779,0.00018,2]
[350919512,1738197038476,-9165.67651754,0.00018,2]
[350919514,1738197038503,-17815.0,0.00018,2]
[350919515,1738197038529,-1030.0,0.00018,2]
[350919520,1738197040295,-804.3077093,0.00018,2]
[350919521,1738197040307,-345.4099159,0.00018,2]
[350919522,1738197040320,-2057.2896228,0.00018,2]
[350919523,1738197040406,-1712.24512789,0.00018,2]
[350919524,1738197040419,-7012.65436287,0.00018,2]
[350919525,1738197040438,-4702.1225,0.00018,2]
[350919526,1738197040452,-3970.98160044,0.00018,2]
[350919527,1738197040464,-980.784,0.00018,2]
[350919528,1738197040584,-1037.8368012,0.00018,2]
[350919529,1738197040598,-426.040005,0.00018,2]
[350919530,1738197040609,-3047.62992868,0.00018,2]
[350919531,1738197040639,-675.99532,0.00018,2]
[350919532,1738197040654,-5008.03296378,0.00018,2]
[350919598,1738197043249,-748.85796076,0.00018,2]
[350919601,1738197043305,-3690.15440453,0.00018,2]
[350919602,1738197043317,-23546.13089427,0.00018,2]
[350919603,1738197043368,-3607.60377658,0.00018,2]
[350919604,1738197043424,-5549.9,0.00018,2]
[350919605,1738197043480,-2980.5149383,0.00018,2]
[350919606,1738197043492,-482.15821,0.00018,2]
[350919607,1738197043504,-558.900001,0.00018,2]
[350919702,1738197046325,-102899.99999994,0.00018,2]
[350919703,1738197046382,-6275.63608125,0.00018,2]
[350919704,1738197046393,-1027.06502752,0.00018,2]
[350919705,1738197046442,-261.0699264,0.00018,2]
[350919706,1738197046456,-317.61014283,0.00018,2]
[350919707,1738197046468,-5308.0,0.00018,2]
[350919708,1738197046500,-765.42499326,0.00018,2]
[350919709,1738197046560,-274.9319996,0.00018,2]
[350919710,1738197046571,-568.85758884,0.00018,2]
[350920269,1738197147569,163.31,0.00010137,2]
[350920271,1738197977394,267.98,0.00010137,2]
[350920275,1738198150141,-164.15,0.00013699,2]
[350920276,1738198150166,-150.0,0.00014041,2]
[350920277,1738198150193,-150.0,0.00014922,2]
[350920278,1738198150217,-150.0,0.00015068,2]
[350920279,1738198150242,-150.0,0.00015068,2]
[350920280,1738198150266,-150.0,0.00015068,2]
[350920281,1738198150291,-714.33,0.00016097,2]
[350920282,1738198150313,-580.00718166,0.00016654,2]
[350920283,1738198150337,-112.1424081,0.00016754,2]
[350920291,1738198231475,-750.35,0.0001576,2]
[350920292,1738198231485,-150.0,0.00016257,2]
[350920293,1738198231494,-150.0,0.00016725,2]
[350920294,1738198231503,-258.2375919,0.00016754,2]
[350920295,1738198231513,-267.98,0.00016813,2]
[350920296,1738198231522,-200.0,0.00017167,2]
[350920297,1738198231531,-186.37,0.00017229,2]
[350920298,1738198231541,-168.68,0.00017257,2]
[350920299,1738198231550,-150.0,0.00017336,2]
[350920300,1738198231559,-300.0,0.00017577,2]
[350920301,1738198231569,-150.99,0.00017578,2]
[350920302,1738198231578,-9448.05015614,0.00017578,2]
[350920303,1738198231590,-551.93984386,0.00017578,2]
[350920304,1738198231599,-299.99,0.00017578,4]
[350920305,1738198231608,-410.64,0.00017578,2]
[350920306,1738198231617,-919.74051317,0.00017578,2]
[350920307,1738198231632,-400.19948683,0.00017578,2]
[350920308,1738198231642,-330.54,0.00017678,2]
[350920309,1738198231651,-354.39,0.00017678,2]
[350920310,1738198231661,-181.0,0.00017741,2]
[350920311,1738198231670,-428.03,0.00017742,2]
[350920312,1738198231681,-500.0,0.00017748,2]
[350920313,1738198231690,-500.0,0.00017748,2]
[350920314,1738198231699,-2411.01974,0.0001782,2]
[350920315,1738198231709,-473.0,0.00017899,2]
[350920316,1738198231718,-202.80182735,0.000179,2]
[350920317,1738198231728,-150.0,0.00017989,2]
[350920318,1738198231742,-1000.0,0.00017998,2]
[350920319,1738198231752,-381.02,0.00018,2]
[350920320,1738198231761,-381.11,0.00018,2]
[350920321,1738198231770,-11.11217662,0.00018,2]
[350920322,1738198231783,-359.45782338,0.00018,2]
[350920323,1738198231792,-236.8852305,0.00018,19]
[350920324,1738198231804,-1563.1147695,0.00018,19]
[350920325,1738198231814,-1771.80055567,0.00018,2]
[350920326,1738198231826,-277.224,0.00018,2]
[350920327,1738198231837,-3400.00000001,0.00018,2]
[350920328,1738198231864,-5996.39302432,0.00018,2]
[350920329,1738198231875,-1183.89467393,0.00018,2]
[350920330,1738198231897,-20420.89383655,0.00018,2]
[350920331,1738198231909,-5098.55877004,0.00018,10]
[350920332,1738198231919,-169.044,0.00018,2]
[350920333,1738198231931,-1132.171,0.00018,2]
[350920334,1738198231942,-750.35,0.00018024,2]
[350920335,1738198231952,-202.80182725,0.0001806,2]
[350920336,1738198231964,-183.81,0.0001809,2]
[350920337,1738198231976,-202.80182725,0.0001822,2]
[350920338,1738198231987,-202.80182725,0.0001838,2]
[350920339,1738198231997,-202.80182725,0.0001854,2]
[350920340,1738198232006,-262.5,0.00018562,2]
[350920341,1738198232016,-202.80182725,0.000187,2]
[350920342,1738198232025,-500.0,0.00018844,2]
[350920343,1738198232035,-202.80182725,0.0001886,2]
[350920344,1738198232044,-4666.7095,0.000189,2]
[350920345,1738198232053,-621.57543399,0.0001892,2]
[350920346,1738198232063,-163.30571518,0.0001892,2]
[350920347,1738198232073,-1800.0,0.00019,20]
[350920348,1738198232082,-5131.48562822,0.00019,2]
[350920349,1738198232104,-620.0,0.00019,2]
[350920351,1738198232120,-29248.51437178,0.00019,2]
[350920353,1738198232130,-4135.68741016,0.00019,2]
[350920355,1738198232140,-20397.79165504,0.00019,2]
[350920358,1738198232159,-78522.65987631,0.00019,2]
[350920360,1738198232168,-202.80182725,0.0001902,2]
[350920362,1738198232177,-621.5754339,0.00019029,2]
[350920364,1738198232187,-72681.0,0.0001911,7]
[350920366,1738198232196,-621.5754339,0.00019138,2]
[350920368,1738198232205,-500.0,0.00019178,2]
[350920370,1738198232215,-500.0,0.00019178,2]
[350920372,1738198232225,-696.59,0.00019178,2]
[350920374,1738198232234,-500.0,0.00019178,2]
[350920376,1738198232243,-500.0,0.00019178,2]
[350920378,1738198232253,-169.23,0.00019178,2]
[350920380,1738198232263,-452.22,0.00019178,2]
[350920382,1738198232272,-500.0,0.00019178,2]
[350920384,1738198232282,-500.0,0.00019178,2]
[350920386,1738198232292,-1031.55,0.00019178,2]
[350920388,1738198232301,-500.0,0.00019178,2]
[350920390,1738198232310,-837.76,0.00019178,2]
[350920392,1738198232320,-500.0,0.00019178,2]
[350920394,1738198232329,-500.0,0.00019178,2]
[350920396,1738198232339,-153.9,0.00019178,2]
[350920398,1738198232348,-2051.54,0.00019178,2]
[350920401,1738198232358,-262.96535236,0.00019178,2]
[350920403,1738198232368,-750.96,0.00019178,2]
[350920405,1738198232378,-500.60893843,0.00019178,2]
[350920407,1738198232388,-446.49,0.00019178,2]
[350920409,1738198232398,-633.51,0.00019178,2]
[350920411,1738198232408,-500.0,0.00019178,2]
[350920421,1738198232591,-150.0,0.00019178,2]
[350920422,1738198232608,-202.80182725,0.0001918,2]
[350920423,1738198232618,-420.0,0.00019187,2]
[350920424,1738198232627,-621.5754339,0.00019247,2]
[350920425,1738198232637,-163.30571518,0.00019247,2]
[350920426,1738198232646,-1002.4156,0.00019252,2]
[350920427,1738198232655,-10558.7677,0.00019275,2]
[350920428,1738198232665,-8846.9369,0.00019275,2]
[350920429,1738198232674,-4345.0,0.000193,2]
[350920430,1738198232683,-500.0,0.00019315,2]
[350920431,1738198232694,-500.0,0.00019315,2]
[350920432,1738198232704,-696.59,0.00019315,2]
[350920433,1738198232713,-500.0,0.00019315,2]
[350920434,1738198232722,-500.0,0.00019315,2]
[350920435,1738198232732,-500.0,0.00019315,2]
[350920436,1738198232744,-500.0,0.00019315,2]
[350920437,1738198232754,-1031.55,0.00019315,2]
[350920438,1738198232764,-500.0,0.00019315,2]
[350920439,1738198232773,-837.76,0.00019315,2]
[350920440,1738198232783,-500.0,0.00019315,2]
[350920441,1738198232793,-500.0,0.00019315,2]
[350920442,1738198232802,-2051.54,0.00019315,2]
[350920443,1738198232815,-750.96,0.00019315,2]
[350920444,1738198232824,-633.51,0.00019315,2]
[350920445,1738198232834,-500.0,0.00019315,2]
[350920446,1738198232843,-500.0,0.00019338,2]
[350920447,1738198232852,-500.0,0.00019338,2]
[350920448,1738198232862,-500.0,0.00019338,2]
[350920449,1738198232871,-300.0,0.00019338,2]
[350920450,1738198232881,-500.0,0.00019338,2]
[350920451,1738198232891,-323.18465842,0.00019338,2]
[350920452,1738198232907,-500.0,0.00019338,2]
[350920453,1738198232916,-500.0,0.00019338,2]
[350920454,1738198232926,-500.0,0.00019338,2]
[350920455,1738198232936,-500.0,0.00019338,2]
[350920456,1738198232946,-218.06339737,0.00019339,2]
[350920457,1738198232957,-520943.45150216,0.00019339,2]
[350920458,1738198232966,-151.0,0.00019339,2]
[350920459,1738198232976,-151.0,0.00019339,2]
[350920460,1738198232985,-151.0,0.00019339,2]
[350920461,1738198232995,-151.0,0.00019339,2]
[350920462,1738198233005,-151.0,0.00019339,2]
[350920463,1738198233014,-151.0,0.00019339,2]
[350920464,1738198233024,-1130.06,0.00019339,2]
[350920465,1738198233034,-29999.99,0.00019339,2]
[350920466,1738198233044,-9999.99,0.00019339,2]
[350920467,1738198233054,-29999.99,0.00019339,2]
[350920468,1738198233064,-202.80182725,0.0001934,2]
[350920469,1738198233075,-4005.2767,0.00019352,2]
[350920470,1738198233085,-621.5754339,0.00019356,2]
[350920471,1738198233095,-151.0,0.00019375,2]
[350920472,1738198233107,-151.0,0.00019375,2]
[350920473,1738198233117,-151.0,0.00019375,2]
[350920474,1738198233129,-151.0,0.00019375,2]
[350920475,1738198233140,-35156.5241,0.00019375,2]
[350920476,1738198233151,-29570.0,0.00019392,2]
[350920477,1738198233162,-300.0,0.000194,7]
[350920478,1738198233175,-500.0,0.00019452,2]
[350920479,1738198233184,-500.0,0.00019452,2]
[350920480,1738198233195,-696.59,0.00019452,2]
[350920481,1738198233206,-578.17,0.00019452,2]
[350920482,1738198233216,-594.3,0.00019452,2]
[350920483,1738198233227,-500.0,0.00019452,2]
[350920484,1738198233241,-500.0,0.00019452,2]
[350920485,1738198233251,-1031.55,0.00019452,2]
[350920486,1738198233263,-500.0,0.00019452,2]
[350920487,1738198233274,-837.76,0.00019452,2]
[350920488,1738198233284,-500.0,0.00019452,2]
[350920489,1738198233295,-500.0,0.00019452,2]
[350920490,1738198233305,-2051.54,0.00019452,2]
[350920491,1738198233316,-750.96,0.00019452,2]
[350920492,1738198233326,-633.51,0.00019452,2]
[350920493,1738198233336,-500.0,0.00019452,2]
[350920494,1738198233346,-621.5754339,0.00019464,2]
[350920495,1738198233358,-221.0248418,0.00019465,2]
[350920496,1738198233368,-500.0,0.00019475,2]
[350920497,1738198233379,-500.0,0.00019475,2]
[350920498,1738198233390,-300.0,0.00019475,2]
[350920499,1738198233400,-500.0,0.00019475,2]
[350920500,1738198233411,-394.29049819,0.00019475,2]
[350920501,1738198233421,-500.0,0.00019475,2]
[350920502,1738198233431,-500.0,0.00019475,2]
[350920503,1738198233442,-500.0,0.00019475,2]
[350920504,1738198233452,-151.0,0.00019475,2]
[350920505,1738198233463,-151.0,0.00019475,2]
[350920506,1738198233473,-151.0,0.00019475,2]
[350920507,1738198233483,-1000.0,0.00019489,2]
[350920508,1738198233494,-4003.69,0.000195,2]
[350920509,1738198233505,-600.0,0.000195,7]
[350920510,1738198233514,-202.80182725,0.000195,2]
[350920511,1738198233525,-151.0,0.000195,2]
[350920512,1738198233535,-151.0,0.000195,2]
[350920513,1738198233545,-151.0,0.000195,2]
[350920514,1738198233554,-163.30571518,0.00019573,2]
[350920515,1738198233564,-621.5754339,0.00019573,2]
[350920516,1738198233574,-500.0,0.00019589,2]
[350920517,1738198233584,-500.0,0.00019589,2]
[350920518,1738198233593,-696.59,0.00019589,2]
[350920519,1738198233603,-500.0,0.00019589,2]
[350920520,1738198233612,-346.58999999,0.00019589,2]
[350920521,1738198233622,-1031.55,0.00019589,2]
[350920522,1738198233631,-500.0,0.00019589,2]
[350920523,1738198233641,-837.76,0.00019589,2]
[350920524,1738198233650,-500.0,0.00019589,2]
[350920525,1738198233661,-500.0,0.00019589,2]
[350920526,1738198233671,-2051.54,0.00019589,2]
[350920527,1738198233680,-750.96,0.00019589,2]
[350920528,1738198233690,-633.51,0.00019589,2]
[350920529,1738198233700,-500.0,0.00019589,2]
[350920530,1738198233709,-1000.0,0.000196,7]
[350920531,1738198233720,-315.33963016,0.00019612,2]
[350920532,1738198233729,-629.9,0.00019612,2]
[350920533,1738198233743,-300.0,0.00019612,2]
[350920534,1738198233753,-261.42394859,0.00019612,2]
[350920535,1738198233764,-500.0,0.00019612,2]
[350920536,1738198233774,-202.80182725,0.0001966,2]
[350920537,1738198233785,-621.5754339,0.00019682,2]
[350920538,1738198233795,-150.0,0.00019683,2]
[350920539,1738198233805,-3010.20141865,0.000197,2]
[350920540,1738198233814,-1300.0,0.000197,7]
[350920541,1738198233825,-150.0,0.00019709,2]
[350920542,1738198233835,-500.0,0.00019717,2]
[350920543,1738198233845,-743.78,0.00019717,2]
[350920544,1738198233854,-500.0,0.00019717,2]
[350920545,1738198233863,-944.93,0.00019717,2]
[350920546,1738198233872,-500.0,0.00019717,2]
[350920547,1738198233881,-500.0,0.00019717,2]
[350920548,1738198233891,-1673.53,0.00019717,2]
[350920549,1738198233900,-500.0,0.00019717,2]
[350920550,1738198233909,-182.94226589,0.00019717,2]
[350920551,1738198233919,-500.0,0.00019717,2]
[350920552,1738198233928,-500.0,0.00019717,2]
[350920553,1738198233939,-500.0,0.00019717,2]
[350920554,1738198233948,-500.0,0.00019717,2]
[350920555,1738198233957,-500.0,0.00019717,2]
[350920556,1738198233966,-500.0,0.00019717,2]
[350920557,1738198233975,-5000.0,0.00019718,2]
[350920558,1738198233985,-1000.0,0.00019725,2]
[350920559,1738198233995,-150.0,0.00019726,2]
[350920560,1738198234004,-500.0,0.00019726,2]
[350920561,1738198234013,-500.0,0.00019726,2]
[350920562,1738198234022,-696.59,0.00019726,2]
[350920563,1738198234032,-500.0,0.00019726,2]
[350920564,1738198234041,-1031.55,0.00019726,2]
[350920565,1738198234050,-500.0,0.00019726,2]
[350920566,1738198234060,-837.76,0.00019726,2]
[350920567,1738198234070,-500.0,0.00019726,2]
[350920568,1738198234079,-500.0,0.00019726,2]
[350920569,1738198234089,-2051.54,0.00019726,2]
[350920570,1738198234098,-750.96,0.00019726,2]
[350920571,1738198234109,-633.51,0.00019726,2]
[350920572,1738198234119,-500.0,0.00019726,2]
[350920573,1738198234128,-1000.0,0.00019727,2]
[350920574,1738198234138,-624.7152579,0.00019733,2]
[350920575,1738198234147,-1000.0,0.00019733,2]
[350920576,1738198234156,-356.49211743,0.00019748,2]
[350920577,1738198234166,-500.0,0.00019748,2]
[350920578,1738198234176,-403.08,0.00019748,2]
[350920579,1738198234186,-314.4754732,0.00019748,2]
[350920580,1738198234197,-500.0,0.00019748,2]
[350920581,1738198234207,-500.0,0.00019748,2]
[350920582,1738198234218,-500.0,0.00019748,2]
[350920583,1738198234227,-500.0,0.00019748,2]
[350920584,1738198234236,-500.0,0.00019748,2]